lending/lending_fUSD_20260209
["ID","MTS","AMOUNT","RATE_DAILY","PERIOD"]
[404822008,1770599443256,-500.0,0.00044356,120]
[404822009,1770599443265,-500.0,0.00044356,120]
[404822010,1770599443274,-500.0,0.00044356,120]
[404822011,1770599443283,-500.0,0.00044356,120]
[404822012,1770599443294,-500.0,0.00044356,120]
[404822013,1770599443305,-500.0,0.00044356,120]
[404822014,1770599443316,-500.0,0.00044356,120]
[404822015,1770599443327,-500.0,0.00044356,120]
[404822016,1770599443336,-500.0,0.00044356,120]
[404822017,1770599443345,-500.0,0.00044356,120]
[404822018,1770599443355,-500.0,0.00044356,120]
[404822019,1770599443364,-500.0,0.00044356,120]
[404822020,1770599443373,-185.76478673,0.00044356,120]
[404822021,1770599443383,-500.0,0.00044356,120]
[404822022,1770599443392,-182.14,0.00044356,120]
[404822023,1770599443402,-500.0,0.00044356,120]
[404822024,1770599443413,-609.32026212,0.00044356,120]
[404822025,1770599443422,-500.0,0.00044356,120]
[404822026,1770599443431,-500.0,0.00044356,120]
[404822027,1770599443440,-300.51862815,0.00044373,5]
[404822028,1770599443450,-4352.5091227,0.00044393,2]
[404822029,1770599443459,-253.0,0.000444,46]
[404822030,1770599443469,-1259.8139315,0.00044401,2]
[404822031,1770599443478,-1493.3000003,0.00044401,2]
[404822032,1770599443487,-1000.0,0.00044402,30]
[404822033,1770599443496,-455.82605615,0.00044411,7]
[404822034,1770599443505,-458.05795193,0.00044411,120]
[404822035,1770599443514,-387.71588981,0.00044411,15]
[404822036,1770599443523,-468.10599954,0.00044411,120]
[404822037,1770599443532,-568.61903729,0.00044411,120]
[404822038,1770599443541,-511.89026404,0.00044411,120]
[404822039,1770599443550,-311.13276159,0.00044411,120]
[404822040,1770599443559,-371.78746214,0.00044411,120]
[404822041,1770599443568,-500.0,0.00044411,120]
[404822042,1770599443578,-500.0,0.00044411,120]
[404822043,1770599443586,-500.0,0.00044411,120]
[404822044,1770599443595,-500.0,0.00044411,120]
[404822045,1770599443604,-500.0,0.00044411,120]
[404822046,1770599443613,-631.03326771,0.00044411,120]
[404822047,1770599443622,-500.0,0.00044411,30]
[404822048,1770599443632,-562.3527918,0.00044411,30]
[404822049,1770599443641,-500.0,0.00044411,120]
[404822050,1770599443650,-500.0,0.00044411,120]
[404822051,1770599443659,-500.0,0.00044411,120]
[404822052,1770599443669,-515.67108635,0.00044411,120]
[404822053,1770599443678,-259.83,0.00044411,120]
[404822054,1770599443687,-500.0,0.00044411,120]
[404822055,1770599443696,-500.0,0.00044411,120]
[404822056,1770599443706,-500.0,0.00044411,120]
[404822057,1770599443715,-407.17857873,0.00044411,120]
[404822058,1770599443724,-500.0,0.00044411,120]
[404822059,1770599443734,-571.80127632,0.00044411,120]
[404822060,1770599443743,-500.0,0.00044411,120]
[404822061,1770599443752,-500.0,0.00044411,120]
[404822062,1770599443761,-242.29001252,0.00044411,120]
[404822063,1770599443770,-123150.42584565,0.00044412,54]
[404822064,1770599443779,-1880391.33606971,0.00044412,10]
[404822065,1770599443814,-500.0,0.00038103,15]
[404822066,1770599443823,-500.0,0.00038103,15]
[404822067,1770599443833,-500.0,0.00038103,15]
[404822068,1770599443843,-500.0,0.00038103,15]
[404822069,1770599443852,-7656.1641893,0.00044412,10]
[404822070,1770599443863,-525390.55119954,0.00044412,10]
[404822071,1770599443877,-500.0,0.00038103,15]
[404822072,1770599443887,-1349.64,0.00044412,10]
[404822073,1770599443906,-500.0,0.00038103,15]
[404822076,1770599444055,-500.0,0.00044411,120]
[404822077,1770599444065,-69241.92570728,0.00044412,10]
[404822083,1770599444169,-265.1286,0.00038103,15]
[404822084,1770599444180,-234.8714,0.00038103,15]
[404822085,1770599444189,-500.0,0.00038103,15]
[404822086,1770599444198,-58.61978991,0.00038103,15]
[404822087,1770599444210,-441.38021009,0.00038103,15]
[404822088,1770599444219,-282.67730861,0.00038103,15]
[404822089,1770599444230,-217.32269139,0.00038103,15]
[404822090,1770599444240,-115.93925827,0.00038103,15]
[404822091,1770599445086,-384.06074173,0.00038103,15]
[404822092,1770599445096,-155.3844258,0.00038103,15]
[404822093,1770599445111,-344.6155742,0.00038103,15]
[404822094,1770599445121,-500.0,0.00038103,15]
[404822095,1770599445131,-500.0,0.00038103,15]
[404822096,1770599445141,-500.0,0.00038103,15]
[404822097,1770599445151,-500.0,0.00038103,15]
[404822098,1770599445161,-238.07307958,0.00038103,15]
[404822099,1770599445170,-500.0,0.00038103,15]
[404822100,1770599445178,-500.0,0.00038103,15]
[404822101,1770599445187,-500.0,0.00038103,15]
[404822102,1770599445197,-500.0,0.00038103,15]
[404822103,1770599445206,-500.0,0.00038103,15]
[404822104,1770599445215,-500.0,0.00038103,15]
[404822105,1770599445226,-193.11923106,0.00044411,120]
[404822106,1770599445235,-500.0,0.00044411,120]
[404822107,1770599445244,-500.0,0.00044411,120]
[404822108,1770599445254,-500.0,0.00044411,120]
[404822109,1770599445263,-353673.93295467,0.00044412,10]
[404822110,1770599445274,-522.24219962,0.00044412,10]
[404822111,1770599445286,-5444.60447903,0.00044412,10]
[404822112,1770599445296,-998.1821167,0.00044412,10]
[404822113,1770599445307,-998.9063611,0.00044412,10]
[404822114,1770599445452,-42275.48075484,0.00044412,10]
[404822115,1770599445465,-18705.9684,0.00044412,10]
[404822116,1770599445479,-28924.57797993,0.00044412,10]
[404822117,1770599445492,-9384.62838452,0.00044412,10]
[404822118,1770599445506,-6456.76566377,0.00044412,10]
[404822119,1770599445518,-9219.2,0.00044412,10]
[404822120,1770599445531,-2833.845,0.00044412,10]
[404822121,1770599445541,-5530.0,0.00044412,10]
[404822127,1770599446337,-18479.0687602,0.00044412,10]
[404822128,1770599446392,-10264.48088164,0.00044412,10]
[404822129,1770599446405,-808.00460389,0.00044412,10]
[404822130,1770599446446,-568848.79598998,0.00044412,10]
[404822131,1770599446457,-904.64662748,0.00044412,10]
[404822132,1770599446502,-2973.14591911,0.00044412,10]
[404822133,1770599446513,-12678.21375174,0.00044412,10]
[404822134,1770599446523,-5279.31111816,0.00044412,10]
[404822135,1770599446615,-9185.96227502,0.00044412,10]
[404822136,1770599446628,-469.26732711,0.00044412,10]
[404822139,1770599491356,500.0,0.00035307,2]
[404822140,1770599608748,509.0,0.0003278,2]
[404822142,1770599657243,254.88007328,0.00035589,120]
[404822151,1770600307743,3736.12992672,0.00018,2]
[404822152,1770600307766,5000.01,0.00018,2]
[404822153,1770600307787,5000.01,0.00018,2]
[404822154,1770600307812,5000.01,0.00018,2]
[404822155,1770600307836,3074.89826769,0.00018,2]
[404822156,1770600307859,3074.89826769,0.00018,2]
[404822157,1770600307882,3074.89826769,0.00018,2]
[404822158,1770600307905,3074.89826769,0.00018,2]
[404822159,1770600307928,3074.89826769,0.00018,2]
[404822160,1770600307951,3074.89826769,0.00018,2]
[404822161,1770600307973,3074.89826769,0.00018,2]
[404822162,1770600307996,3074.89826769,0.00018,2]
[404822163,1770600308018,3074.89826769,0.00018,2]
[404822164,1770600308045,3074.89826769,0.00018,2]
[404822165,1770600308617,-5843.06653209,0.00018,2]
[404822166,1770600308810,-10000.01,0.00018,2]
[404822167,1770600308953,-10000.01,0.00018,2]
[404822168,1770600309087,-10000.01,0.00018,2]
[404822169,1770600309218,-10000.01,0.00018,2]
[404822170,1770600309349,-10000.01,0.00018,2]
[404822171,1770600309497,-10000.01,0.00018,2]
[404822172,1770600309907,-10000.01,0.00018,2]
[404822173,1770600309980,-10000.01,0.00018,2]
[404822174,1770600310110,-10000.01,0.00018,2]
[404822175,1770600310278,-10000.01,0.00018,2]
[404822176,1770600310399,-10000.01,0.00018,2]
[404822177,1770600310528,-10000.01,0.00018,2]
[404822178,1770600310657,-10000.01,0.00018,2]
[404822179,1770600310794,-10000.01,0.00018,2]
[404822180,1770600311467,-10000.01,0.00018,2]
[404822181,1770600311654,-10000.01,0.00018,2]
[404822182,1770600311731,-10000.01,0.00018,2]
[404822183,1770600311855,-10000.01,0.00018,2]
[404822184,1770600311986,-10000.01,0.00018,2]
[404822185,1770600312302,-10000.01,0.00018,2]
[404822186,1770600312355,-10000.01,0.00018,2]
[404822187,1770600312458,-10000.01,0.00018,2]
[404822188,1770600312584,-10000.01,0.00018,2]
[404822189,1770600312617,-3795.75674533,0.00018,2]
[404822190,1770600312727,-5000.01,0.00018,2]
[404822191,1770600312822,-5000.01,0.00018,2]
[404822192,1770600312950,-5000.01,0.00018,2]
[404822193,1770600313111,-5000.01,0.00018,2]
[404822194,1770600313232,-5000.01,0.00018,2]
[404822195,1770600313374,-5000.01,0.00018,2]
[404822196,1770600313688,-5000.01,0.00018,2]
[404822197,1770600313800,-5000.01,0.00018,2]
[404822198,1770600313901,-5000.01,0.00018,2]
[404822199,1770600313997,-5000.01,0.00018,2]
[404822200,1770600315767,-5000.01,0.00018,2]
[404822201,1770600315880,-5000.01,0.00018,2]
[404822202,1770600316006,-5000.01,0.00018,2]
[404822203,1770600316166,-5000.01,0.00018,2]
[404822204,1770600316451,-5000.01,0.00018,2]
[404822205,1770600316491,-5000.01,0.00018,2]
[404822206,1770600316516,-5000.01,0.00018,2]
[404822207,1770600316610,-5000.01,0.00018,2]
[404822208,1770600316750,-5000.01,0.00018,2]
[404822209,1770600316876,-5000.01,0.00018,2]
[404822210,1770600317017,-5000.01,0.00018,2]
[404822211,1770600317541,-10000.01,0.00018,2]
[404822212,1770600317599,-10000.01,0.00018,2]
[404822213,1770600317715,-10000.01,0.00018,2]
[404822214,1770600317843,-10000.01,0.00018,2]
[404822215,1770600318027,-10000.01,0.00018,2]
[404822216,1770600318138,-10000.01,0.00018,2]
[404822217,1770600318235,-10000.01,0.00018,2]
[404822218,1770600318369,-10000.01,0.00018,2]
[404822219,1770600318506,-10000.01,0.00018,2]
[404822220,1770600318631,-10000.01,0.00018,2]
[404822221,1770600318727,-10000.01,0.00018,2]
[404822222,1770600318848,-10000.01,0.00018,2]
[404822223,1770600318978,-10000.01,0.00018,2]
[404822224,1770600319075,-10000.01,0.00018,2]
[404822225,1770600319114,5617.63196721,0.00013,2]
[404822226,1770600319188,-10000.01,0.00018,2]
[404822227,1770600324106,-5000.01,0.00018,2]
[404822228,1770600324255,-5000.01,0.00018,2]
[404822229,1770600324353,-5000.01,0.00018,2]
[404822230,1770600324462,-5000.01,0.00018,2]
[404822231,1770600324584,-5000.01,0.00018,2]
[404822232,1770600324689,-5000.01,0.00018,2]
[404822233,1770600324793,-5000.01,0.00018,2]
[404822234,1770600324928,-5000.01,0.00018,2]
[404822235,1770600325028,-5000.01,0.00018,2]
[404822236,1770600325116,-5000.01,0.00018,2]
[404822237,1770600325252,-5000.01,0.00018,2]
[404822238,1770600325381,-5000.01,0.00018,2]
[404822239,1770600357077,357.88563919,0.00013,2]
[404822240,1770600359113,9642.12436081,8e-05,2]
[404822241,1770600359135,10000.01,8e-05,2]
[404822242,1770600359158,1733.02278582,8e-05,2]
[404822243,1770600411200,5000.0,0.000162,5]
[404822244,1770600429671,-300.0,0.00017999,2]
[404822245,1770600429702,-550.0,0.00017999,2]
[404822246,1770600429732,-300.0,0.00017999,2]
[404822247,1770600477290,1650.0,0.00035616,30]
[404822248,1770600481348,300.0,0.00017999,2]
[404822249,1770600486679,308.09490359,0.000125,2]
[404822251,1770600507757,1200.0,0.00017999,2]
[404822252,1770600509794,692.03421657,0.00028,60]
[404822253,1770600513599,196.31055083,0.00017999,2]
[404822254,1770600513629,392.89420361,0.00017999,2]
[404822255,1770600513675,299.38188231,0.00017999,2]
[404822256,1770600513704,500.0,0.00017999,2]
[404822257,1770600513902,159.33748378,0.00017999,2]
[404822258,1770600514006,500.0,0.00017999,2]
[404822259,1770600514150,313.53519596,0.00017999,2]
[404822260,1770600517228,360.44024216,0.00017999,2]
[404822261,1770600517258,500.0,0.00017999,2]
[404822262,1770600517291,500.0,0.00017999,2]
[404822263,1770600517317,191.87614194,0.00017999,2]
[404822264,1770600517345,500.0,0.00017999,2]
[404822265,1770600517380,500.0,0.00017999,2]
[404822266,1770600517455,86.23429941,0.00017999,2]
[404822267,1770600517503,413.76570059,0.00017999,2]
[404822268,1770600517559,500.0,0.00017999,2]
[404822269,1770600517625,500.0,0.00017999,2]
[404822270,1770600517655,500.0,0.00017999,2]
[404822271,1770600517681,500.0,0.00017999,2]
[404822272,1770600517711,500.0,0.00017999,2]
[404822273,1770600517737,500.0,0.00017999,2]
[404822274,1770600517771,500.0,0.00017999,2]
[404822275,1770600517796,500.0,0.00017999,2]
[404822276,1770600517826,500.0,0.00017999,2]
[404822277,1770600517852,86.24429941,0.00017999,2]
[404822278,1770600517873,229.05465296,0.00017999,2]
[404822279,1770600517898,258.06350331,0.00017999,2]
[404822280,1770600517928,500.0,0.00017999,2]
[404822281,1770600517956,500.0,0.00017999,2]
[404822282,1770600517988,500.0,0.00017999,2]
[404822283,1770600518018,500.0,0.00017999,2]
[404822284,1770600518048,500.0,0.00017999,2]
[404822285,1770600518083,500.0,0.00017999,2]
[404822286,1770600518118,500.0,0.00017999,2]
[404822287,1770600518143,500.0,0.00017999,2]
[404822288,1770600518342,500.0,0.00017999,2]
[404822289,1770600518387,12.89184373,0.00017999,2]
[404822290,1770600518410,487.10815627,0.00017999,2]
[404822291,1770600518442,500.0,0.00017999,2]
[404822292,1770600518471,500.0,0.00017999,2]
[404822293,1770600518502,500.0,0.00017999,2]
[404822294,1770600518535,500.0,0.00017999,2]
[404822295,1770600518570,500.0,0.00017999,2]
[404822296,1770600518608,500.0,0.00017999,2]
[404822297,1770600518656,500.0,0.00017999,2]
[404822298,1770600518690,500.0,0.00017999,2]
[404822299,1770600518726,500.0,0.00017999,2]
[404822300,1770600518760,12.90184373,0.00017999,2]
[404822301,1770600518786,487.09815627,0.00017999,2]
[404822302,1770600518823,500.0,0.00017999,2]
[404822303,1770600518857,500.0,0.00017999,2]
[404822304,1770600518888,500.0,0.00017999,2]
[404822305,1770600518921,500.0,0.00017999,2]
[404822306,1770600518954,500.0,0.00017999,2]
[404822307,1770600518990,500.0,0.00017999,2]
[404822308,1770600519023,500.0,0.00017999,2]
[404822309,1770600519058,500.0,0.00017999,2]
[404822310,1770600519095,500.0,0.00017999,2]
[404822311,1770600519121,12.91184373,0.00017999,2]
[404822312,1770600519144,487.08815627,0.00017999,2]
[404822313,1770600519176,500.0,0.00017999,2]
[404822314,1770600519211,500.0,0.00017999,2]
[404822315,1770600519260,500.0,0.00017999,2]
[404822316,1770600519292,500.0,0.00017999,2]
[404822317,1770600519323,500.0,0.00017999,2]
[404822318,1770600519363,500.0,0.00017999,2]
[404822319,1770600519405,500.0,0.00017999,2]
[404822320,1770600519443,500.0,0.00017999,2]
[404822321,1770600519476,500.0,0.00017999,2]
[404822322,1770600519507,12.92184373,0.00017999,2]
[404822323,1770600519533,487.07815627,0.00017999,2]
[404822324,1770600519564,500.0,0.00017999,2]
[404822325,1770600544160,7448.63939751,0.000179,2]
[404822326,1770600549532,183.5103701,0.000179,2]
[404822327,1770600549615,1404.41362013,0.000179,2]
[404822328,1770600554743,963.44661226,0.000179,2]
[404822329,1770600554765,681.60829635,0.000179,2]
[404822330,1770600563721,500.0,0.00017999,2]
[404822331,1770600564029,500.0,0.00017999,2]
[404822332,1770600564352,500.0,0.00017999,2]
[404822333,1770600564655,500.0,0.00017999,2]
[404822334,1770600565060,500.0,0.00017999,2]
[404822335,1770600565324,-5343.739786,0.00018,2]
[404822336,1770600565373,500.0,0.00017999,2]
[404822337,1770600565712,500.0,0.00017999,2]
[404822338,1770600566164,500.0,0.00017999,2]
[404822339,1770600566618,500.0,0.00017999,2]
[404822340,1770600566965,500.0,0.00017999,2]
[404822341,1770600567272,500.0,0.00017999,2]
[404822342,1770600568048,500.0,0.00017999,2]
[404822343,1770600573001,500.0,0.00017999,2]
[404822346,1770600585156,2044.5,0.000179,2]
[404822347,1770600597735,-50000.0,0.00018,2]
[404822348,1770600598598,-50000.0,0.00018,2]
[404822349,1770600599472,-40282.46136906,0.00018,2]
[404822350,1770600599498,-9717.53863094,0.00018,2]
[404822351,1770600600521,-50000.0,0.00018,2]
[404822352,1770600601131,300.0,0.00017999,2]
[404822353,1770600601162,300.0,0.00017999,2]
[404822354,1770600601195,1200.0,0.00017999,2]
[404822355,1770600601463,-50000.0,0.00018,2]
[404822356,1770600601513,550.0,0.00017999,2]
[404822357,1770600601548,300.0,0.00017999,2]
[404822358,1770600602409,-50000.0,0.00018,2]
[404822359,1770600603412,-50000.0,0.00018,2]
[404822360,1770600604428,-50000.0,0.00018,2]
[404822361,1770600605772,2305.51,0.000179,2]
[404822362,1770600605802,1564.40262124,0.000179,2]
[404822363,1770600606622,8435.60737876,0.0001799,2]
[404822364,1770600606650,8988.51262124,0.0001799,2]
[404822365,1770600606866,1011.49737876,0.0001799,2]
[404822366,1770600606893,10000.01,0.0001799,2]
[404822367,1770600606921,6412.61262124,0.0001799,2]
[404822368,1770600610727,-10500.0,0.00018,2]
[404822369,1770600614350,151.82659475,0.00017973,2]
[404822370,1770600624197,3435.57078401,0.000179,2]
[404822371,1770600624224,2774.20507505,0.000179,2]
[404822372,1770600629856,227.98241111,0.000179,2]
[404822381,1770600631558,-2333.32099426,0.00018,2]
[404822382,1770600631749,-2535.48197541,0.00018,2]
[404822383,1770600631984,500.0,0.00017999,2]
[404822384,1770600632039,500.0,0.00017999,2]
[404822385,1770600632094,167.14946677,0.00017999,2]
[404822386,1770600633238,211.03023677,0.000179,2]
[404822392,1770600637542,-3012045.51215132,0.00018,2]
[404822393,1770600637552,-1410.33109973,0.00018,2]
[404822394,1770600637561,-195.0,0.0001805,2]
[404822395,1770600637571,-1781.23006098,0.000181,2]
[404822396,1770600637580,-156.71933955,0.0001813,2]
[404822397,1770600637589,-198.93640224,0.00018478,2]
[404822398,1770600637598,-935.0,0.00019079,2]
[404822399,1770600637608,-200.23286085,0.00019082,2]
[404822400,1770600637618,-668.0,0.00019639,2]
[404822401,1770600637628,-420.0,0.00019639,2]
[404822402,1770600637637,-420.0,0.00019639,2]
[404822403,1770600637647,-1680.0,0.00019735,2]
[404822404,1770600637656,-250.0,0.000198,2]
[404822405,1770600637665,-250.0,0.000198,2]
[404822406,1770600637674,-195.0,0.000198,2]
[404822407,1770600637684,-156.71933955,0.00020169,2]
[404822408,1770600637693,-1589.0,0.00020231,2]
[404822409,1770600637703,-1410.33109965,0.00020336,2]
[404822410,1770600637712,-24685.82653972,0.00021,2]
[404822411,1770600637721,-587.0,0.00021428,2]
[404822412,1770600637731,-587.0,0.00021428,2]
[404822413,1770600637740,-298.0,0.00021437,2]
[404822414,1770600637749,-2351.0,0.00021639,2]
[404822415,1770600637759,-1404.41362012,0.00021673,2]
[404822416,1770600637768,-6209.77585904,0.00022131,2]
[404822417,1770600637777,-156.71933955,0.00022207,2]
[404822418,1770600637786,-1410.33109965,0.00022671,2]
[404822419,1770600637795,-823.0,0.00023381,2]
[404822421,1770600637805,-3292.0,0.00023727,2]
[404822423,1770600637814,-27342.65448281,0.000241,2]
[404822426,1770600637828,-156.71933955,0.00024246,2]
[404822428,1770600637838,-1410.33109965,0.00025007,2]
[404822430,1770600637847,-250.0,0.000252,2]
[404822432,1770600637857,-250.0,0.00025258,2]
[404822434,1770600637866,-4784.24337248,0.00025316,2]
[404822435,1770600637877,-1404.41362012,0.00025445,2]
[404822436,1770600637887,-1110.0,0.00025511,2]
[404822437,1770600637897,-4609.0,0.00026016,2]
[404822438,1770600637907,-156.71933955,0.00026284,2]
[404822439,1770600637918,-6209.77585904,0.00026361,2]
[404822440,1770600637928,-1410.33109965,0.00027343,2]
[404822441,1770600637940,-156.71933955,0.00028323,2]
[404822442,1770600637953,-909.0,0.00028526,2]
[404822443,1770600637963,-1404.41362012,0.00029218,2]
[404822444,1770600637972,-160.19,0.00029466,2]
[404822445,1770600637982,-1410.33109965,0.00029678,2]
[404822446,1770600637994,-159.84911058,0.00029699,2]
[404822447,1770600638004,-1453.98102222,0.0003,2]
[404822448,1770600638013,-156.71933955,0.00030362,2]
[404822449,1770600638026,-6209.77585904,0.00030592,2]
[404822450,1770600638037,-1645.0549086,0.00031104,2]
[404822451,1770600638046,-3869.91262123,0.00031104,2]
[404822452,1770600638056,-1466.45218537,0.0003121,2]
[404822453,1770600638065,-503.82952283,0.0003121,2]
[404822454,1770600638075,-4450.4247,0.00032,10]
[404822455,1770600638084,-1410.33109965,0.00032014,2]
[404822456,1770600638094,-159.84911056,0.00032125,2]
[404822457,1770600638103,-156.71933955,0.000324,2]
[404822458,1770600638113,-160.19,0.00032412,2]
[404822459,1770600638122,-509.0,0.00032616,2]
[404822460,1770600638132,-509.0,0.00032616,2]
[404822461,1770600638141,-509.0,0.00032616,2]
[404822462,1770600638151,-1404.41362012,0.0003299,2]
[404822463,1770600638160,-529.08,0.00033,2]
[404822464,1770600638170,-200.0,0.00034243,2]
[404822465,1770600638180,-357.0,0.00034349,2]
[404822466,1770600638189,-214.0,0.00034349,2]
[404822467,1770600638200,-1410.33109965,0.0003435,2]
[404822468,1770600638210,-156.71933955,0.00034439,2]
[404822469,1770600638224,-159.84911056,0.00034551,2]
[404822470,1770600638234,-6209.77585904,0.00034822,2]
[404822471,1770600638244,-150.0,0.00034904,2]
[404822472,1770600638254,-160.19,0.00035359,2]
[404822473,1770600638264,-5371.0,0.000356,5]
[404822474,1770600638273,-677.9138459,0.0003561,2]
[404822475,1770600638283,-1852.42,0.0003578,2]
[404822476,1770600638292,-223.12649593,0.00036193,7]
[404822477,1770600638302,-156.71933955,0.00036478,2]
[404822478,1770600638312,-150.0,0.00036649,2]
[404822479,1770600638322,-1410.33109965,0.00036685,2]
[404822480,1770600638331,-1404.41362012,0.00036763,2]
[404822481,1770600638341,-56836.41522926,0.00036888,60]
[404822482,1770600638352,-159.84911056,0.00036978,2]
[404822483,1770600638362,-150.0,0.000378,30]
[404822484,1770600638374,-529.08,0.000378,2]
[404822485,1770600638384,-160.19,0.00038305,2]
[404822486,1770600638393,-150.0,0.00038482,2]
[404822487,1770600638405,-156.71933955,0.00038516,2]
[404822488,1770600638415,-190.53,0.00038848,2]
[404822489,1770600638428,-150.0,0.00039006,2]
[404822490,1770600638438,-150.0,0.00039006,2]
[404822491,1770600638448,-1410.33109965,0.00039021,2]
[404822492,1770600638459,-6209.77585904,0.00039053,2]
[404822493,1770600638470,-150.0,0.00039061,2]
[404822494,1770600638479,-300.0,0.00039079,10]
[404822495,1770600638490,-666.0,0.00039079,30]
[404822496,1770600638500,-2436.55069835,0.0003908,2]
[404822497,1770600638509,-162.8749,0.0003908,30]
[404822498,1770600638519,-3500000.0,0.0003908,2]
[404822499,1770600638529,-1000.0,0.0003908,2]
[404822500,1770600638538,-253.69312086,0.00039116,2]
[404822501,1770600638548,-5605.59,0.0003918,2]
[404822502,1770600638558,-116011.71078188,0.00039317,2]
[404822503,1770600638568,-1410.294,0.00039379,54]
[404822504,1770600638577,-168.241,0.00039379,54]
[404822505,1770600638587,-500.0,0.00039379,60]
[404822506,1770600638596,-577.87283872,0.00039379,60]
[404822507,1770600638607,-159.84911056,0.00039404,2]
[404822508,1770600638616,-500.0,0.0003948,60]
[404822509,1770600638629,-500.0,0.0003948,60]
[404822510,1770600638639,-553.94559675,0.0003948,60]
[404822511,1770600638649,-500.0,0.0003948,30]
[404822512,1770600638659,-500.0,0.0003948,60]
[404822513,1770600638669,-500.0,0.0003948,60]
[404822514,1770600638681,-500.0,0.0003948,60]
[404822515,1770600638690,-500.0,0.0003948,30]
[404822516,1770600638701,-538.04020552,0.0003948,30]
[404822517,1770600638711,-500.0,0.0003948,60]
[404822518,1770600638721,-500.0,0.0003948,60]
[404822519,1770600638730,-500.0,0.0003948,60]
[404822520,1770600638740,-502.16669694,0.0003948,60]
[404822521,1770600638749,-641.3407631,0.0003948,60]
[404822522,1770600638759,-500.0,0.0003948,30]
[404822523,1770600638769,-500.0,0.0003948,30]
[404822524,1770600638779,-172.83,0.000395,14]
[404822525,1770600638788,-5496.87,0.000395,14]
[404822526,1770600638797,-178.93,0.000395,14]
[404822527,1770600638808,-500.0,0.00039955,2]
[404822528,1770600638818,-150.0,0.00039971,7]
[404822529,1770600638830,-150.0,0.00039971,7]
[404822530,1770600638841,-150.0,0.00039971,7]
[404822531,1770600638850,-150.0,0.00039971,7]
[404822532,1770600638860,-150.0,0.00039971,7]
[404822533,1770600638870,-150.0,0.00039971,7]
[404822534,1770600638880,-150.0,0.00039971,7]
[404822535,1770600638890,-1215.08782113,0.0004,120]
[404822536,1770600638899,-153.0,0.0004,120]
[404822537,1770600638908,-5000.0,0.0004,3]
[404822538,1770600638919,-274.51,0.0004,120]
[404822539,1770600638929,-500.0,0.0004,5]
[404822540,1770600638938,-550.25,0.0004,120]
[404822541,1770600638949,-500.0,0.0004,5]
[404822542,1770600638959,-203.49,0.0004,120]
[404822543,1770600638969,-505.07397647,0.0004,5]
[404822544,1770600638979,-419.83400538,0.0004,5]
[404822545,1770600638989,-207.87433626,0.0004,5]
[404822546,1770600639000,-501.80339377,0.0004,5]
[404822547,1770600639011,-424.35909891,0.0004,5]
[404822548,1770600639020,-500.0,0.0004,5]
[404822549,1770600639030,-501.72882129,0.0004,5]
[404822550,1770600639040,-501.70404248,0.0004,5]
[404822551,1770600639051,-500.0,0.0004,5]
[404822552,1770600639062,-10000.0,0.000403,2]
[404822553,1770600639071,-150.0,0.00040406,2]
[404822554,1770600639081,-150.0,0.00040415,7]